fUST/lending_fUST_20250828
["ID","MTS","AMOUNT","RATE_DAILY","PERIOD"]
[381892935,1756392646505,-480.0,0.0002,2]
[381892937,1756392646521,-480.0,0.0002,2]
[381892939,1756392646531,-480.0,0.0002,2]
[381892941,1756392646541,-480.0,0.0002,2]
[381892943,1756392646551,-480.0,0.0002,2]
[381892945,1756392646562,-480.0,0.0002,2]
[381892947,1756392646573,-854.18,0.0002,2]
[381892949,1756392646583,-480.0,0.0002,2]
[381892952,1756392646593,-1210.09,0.0002,2]
[381892954,1756392646603,-370.88356942,0.0002,2]
[381892956,1756392646615,-480.0,0.0002,2]
[381892958,1756392646626,-480.0,0.0002,2]
[381892960,1756392646637,-480.0,0.0002,2]
[381892962,1756392646647,-480.0,0.0002,2]
[381892964,1756392646658,-480.0,0.0002,2]
[381892967,1756392646668,-480.0,0.0002,2]
[381892969,1756392646679,-480.0,0.0002,2]
[381892971,1756392646689,-1309.28,0.0002,2]
[381892973,1756392646699,-1542.5,0.0002,2]
[381892975,1756392646709,-480.0,0.0002,2]
[381892977,1756392646720,-480.0,0.0002,2]
[381892980,1756392646731,-480.0,0.0002,2]
[381892984,1756392646743,-1055.24,0.0002,2]
[381892987,1756392646756,-480.0,0.0002,2]
[381892990,1756392646766,-2513.27,0.0002,2]
[381892993,1756392646776,-480.0,0.0002,2]
[381892996,1756392646786,-1738.12,0.0002,2]
[381892998,1756392646797,-480.0,0.0002,2]
[381893000,1756392646807,-480.0,0.0002,2]
[381893002,1756392646817,-480.0,0.0002,2]
[381893003,1756392646827,-480.0,0.0002,2]
[381893004,1756392646837,-480.0,0.0002,2]
[381893005,1756392646847,-706.88,0.0002,2]
[381893006,1756392646857,-480.0,0.0002,2]
[381893007,1756392646867,-480.0,0.0002,2]
[381893008,1756392646878,-480.0,0.0002,2]
[381893009,1756392646888,-480.0,0.0002,2]
[381893010,1756392646898,-1345.08,0.0002,2]
[381893011,1756392646908,-534.68,0.0002,2]
[381893013,1756392646918,-480.0,0.0002,2]
[381893015,1756392646928,-480.0,0.0002,2]
[381893017,1756392646939,-480.0,0.0002,2]
[381893019,1756392646950,-1970.87,0.0002,2]
[381893020,1756392646960,-480.0,0.0002,2]
[381893021,1756392646971,-480.0,0.0002,2]
[381893022,1756392646981,-480.0,0.0002,2]
[381893023,1756392646992,-543.55,0.0002,2]
[381893024,1756392647002,-480.0,0.0002,2]
[381893026,1756392647013,-848.13,0.0002,2]
[381893027,1756392647024,-480.0,0.0002,2]
[381893030,1756392647034,-480.0,0.0002,2]
[381893031,1756392647044,-480.0,0.0002,2]
[381893034,1756392647055,-480.0,0.0002,2]
[381893036,1756392647066,-480.0,0.0002,2]
[381893038,1756392647076,-480.0,0.0002,2]
[381893040,1756392647086,-611.87,0.0002,2]
[381893042,1756392647096,-480.0,0.0002,2]
[381893044,1756392647106,-553.16,0.0002,2]
[381893046,1756392647116,-480.0,0.0002,2]
[381893048,1756392647127,-480.0,0.0002,2]
[381893050,1756392647139,-480.0,0.0002,2]
[381893052,1756392647152,-480.0,0.0002,2]
[381893054,1756392647163,-480.0,0.0002,2]
[381893056,1756392647173,-480.0,0.0002,2]
[381893058,1756392647183,-716.59,0.0002,2]
[381893059,1756392647194,-971.05,0.0002,2]
[381893061,1756392647204,-480.0,0.0002,2]
[381893062,1756392647215,-480.0,0.0002,2]
[381893063,1756392647226,-480.0,0.0002,2]
[381893064,1756392647237,-779.59,0.0002,2]
[381893065,1756392647247,-480.0,0.0002,2]
[381893066,1756392647258,-480.0,0.0002,2]
[381893067,1756392647269,-1382.64,0.0002,2]
[381893068,1756392647279,-1643.96,0.0002,2]
[381893070,1756392647290,-480.0,0.0002,2]
[381893096,1756392647540,-480.0,0.0002,2]
[381893099,1756392647557,-998.4,0.0002,2]
[381893101,1756392647567,-1436.79,0.0002,2]
[381893103,1756392647576,-480.0,0.0002,2]
[381893105,1756392647585,-480.0,0.0002,2]
[381893107,1756392647595,-480.0,0.0002,2]
[381893109,1756392647604,-1140.12,0.0002,2]
[381893111,1756392647613,-480.0,0.0002,2]
[381893113,1756392647622,-480.0,0.0002,2]
[381893115,1756392647632,-480.0,0.0002,2]
[381893117,1756392647642,-512.27,0.0002,2]
[381893119,1756392647653,-480.0,0.0002,2]
[381893121,1756392647663,-480.0,0.0002,2]
[381893122,1756392647672,-480.0,0.0002,2]
[381893123,1756392647682,-480.0,0.0002,2]
[381893124,1756392647691,-480.0,0.0002,2]
[381893125,1756392647701,-871.64,0.0002,2]
[381893126,1756392647711,-480.0,0.0002,2]
[381893127,1756392647721,-480.0,0.0002,2]
[381893128,1756392647731,-480.0,0.0002,2]
[381893130,1756392647740,-480.0,0.0002,2]
[381893132,1756392647749,-480.0,0.0002,2]
[381893134,1756392647759,-552.44,0.0002,2]
[381893136,1756392647768,-488.77,0.0002,2]
[381893138,1756392647777,-480.0,0.0002,2]
[381893140,1756392647786,-545.93,0.0002,2]
[381893142,1756392647795,-696.53,0.0002,2]
[381893144,1756392647804,-1849.12,0.0002,2]
[381893146,1756392647814,-480.0,0.0002,2]
[381893147,1756392647823,-480.0,0.0002,2]
[381893149,1756392647832,-480.0,0.0002,2]
[381893151,1756392647842,-480.0,0.0002,2]
[381893153,1756392647851,-480.0,0.0002,2]
[381893155,1756392647860,-959.54,0.0002,2]
[381893156,1756392647869,-480.0,0.0002,2]
[381893158,1756392647878,-480.0,0.0002,2]
[381893160,1756392647888,-543.54210536,0.0002,2]
[381893162,1756392647897,-974.0,0.00020139,2]
[381893164,1756392647907,-638.0,0.00020139,2]
[381893166,1756392647916,-2157.0,0.00020139,2]
[381893167,1756392647925,-409.0,0.00020139,2]
[381893169,1756392647934,-417.947,0.00020139,2]
[381893171,1756392647943,-250.0,0.00020139,2]
[381893173,1756392647953,-273.285506,0.00020187,2]
[381893176,1756392647964,-500.0,0.00020268,2]
[381893178,1756392647973,-500.0,0.00020268,2]
[381893180,1756392647983,-480.0,0.00020273,2]
[381893182,1756392647992,-480.0,0.00020273,2]
[381893184,1756392648001,-480.0,0.00020273,2]
[381893186,1756392648011,-480.0,0.00020273,2]
[381893188,1756392648020,-689.08,0.00020273,2]
[381893190,1756392648030,-480.0,0.00020273,2]
[381893192,1756392648039,-480.0,0.00020273,2]
[381893194,1756392648048,-480.0,0.00020273,2]
[381893196,1756392648058,-480.0,0.00020273,2]
[381893198,1756392648067,-480.0,0.00020273,2]
[381893200,1756392648076,-480.0,0.00020273,2]
[381893202,1756392648085,-480.0,0.00020273,2]
[381893204,1756392648095,-480.0,0.00020273,2]
[381893206,1756392648105,-480.0,0.00020273,2]
[381893208,1756392648114,-480.0,0.00020273,2]
[381893210,1756392648123,-480.0,0.00020273,2]
[381893211,1756392648133,-480.0,0.00020273,2]
[381893212,1756392648142,-480.0,0.00020273,2]
[381893213,1756392648151,-480.0,0.00020273,2]
[381893214,1756392648161,-480.0,0.00020273,2]
[381893215,1756392648170,-301.14742444,0.00020273,2]
[381893216,1756392648179,-480.0,0.00020273,2]
[381893217,1756392648190,-480.0,0.00020273,2]
[381893218,1756392648199,-394.23785373,0.00020273,2]
[381893219,1756392648209,-480.0,0.00020273,2]
[381893220,1756392648218,-480.0,0.00020273,2]
[381893221,1756392648228,-480.0,0.00020273,2]
[381893222,1756392648238,-480.0,0.00020273,2]
[381893223,1756392648247,-480.0,0.00020273,2]
[381893224,1756392648257,-480.0,0.00020273,2]
[381893225,1756392648267,-480.0,0.00020273,2]
[381893226,1756392648277,-480.0,0.00020273,2]
[381893227,1756392648287,-480.0,0.00020273,2]
[381893228,1756392648297,-480.0,0.00020273,2]
[381893229,1756392648307,-259.86764687,0.00020273,2]
[381893230,1756392648317,-480.0,0.00020273,2]
[381893231,1756392648326,-480.0,0.00020273,2]
[381893232,1756392648336,-480.0,0.00020273,2]
[381893233,1756392648345,-480.0,0.00020273,2]
[381893234,1756392648355,-611.93,0.00020273,2]
[381893235,1756392648364,-332.06575297,0.00020273,2]
[381893236,1756392648374,-570.81157589,0.00020273,2]
[381893237,1756392648384,-480.0,0.00020273,2]
[381893238,1756392648396,-480.0,0.00020273,2]
[381893239,1756392648406,-480.0,0.00020273,2]
[381893240,1756392648416,-480.0,0.00020273,2]
[381893241,1756392648425,-480.0,0.00020273,2]
[381893242,1756392648435,-480.0,0.00020273,2]
[381893243,1756392648444,-480.0,0.00020273,2]
[381893244,1756392648454,-480.0,0.00020273,2]
[381893245,1756392648464,-854.18,0.00020273,2]
[381893246,1756392648476,-480.0,0.00020273,2]
[381893247,1756392648486,-1210.09,0.00020273,2]
[381893248,1756392648496,-480.0,0.00020273,2]
[381893249,1756392648506,-480.0,0.00020273,2]
[381893250,1756392648516,-480.0,0.00020273,2]
[381893251,1756392648526,-480.0,0.00020273,2]
[381893252,1756392648536,-480.0,0.00020273,2]
[381893253,1756392648546,-480.0,0.00020273,2]
[381893254,1756392648556,-1309.28,0.00020273,2]
[381893255,1756392648566,-1542.5,0.00020273,2]
[381893256,1756392648576,-480.0,0.00020273,2]
[381893257,1756392648586,-480.0,0.00020273,2]
[381893258,1756392648595,-1055.24,0.00020273,2]
[381893259,1756392648605,-480.0,0.00020273,2]
[381893260,1756392648615,-2513.27,0.00020273,2]
[381893261,1756392648625,-480.0,0.00020273,2]
[381893262,1756392648635,-1738.12,0.00020273,2]
[381893263,1756392648644,-480.0,0.00020273,2]
[381893264,1756392648654,-480.0,0.00020273,2]
[381893265,1756392648664,-480.0,0.00020273,2]
[381893266,1756392648673,-480.0,0.00020273,2]
[381893267,1756392648683,-480.0,0.00020273,2]
[381893268,1756392648693,-706.88,0.00020273,2]
[381893269,1756392648702,-480.0,0.00020273,2]
[381893270,1756392648711,-480.0,0.00020273,2]
[381893271,1756392648721,-1345.08,0.00020273,2]
[381893272,1756392648731,-335.45996539,0.00020273,2]
[381893273,1756392648741,-534.68,0.00020273,2]
[381893274,1756392648751,-480.0,0.00020273,2]
[381893275,1756392648761,-480.0,0.00020273,2]
[381893276,1756392648771,-480.0,0.00020273,2]
[381893277,1756392648781,-1970.87,0.00020273,2]
[381893278,1756392648790,-480.0,0.00020273,2]
[381893279,1756392648800,-456.29058473,0.00020273,2]
[381893280,1756392648809,-480.0,0.00020273,2]
[381893281,1756392648818,-543.55,0.00020273,2]
[381893282,1756392648828,-848.13,0.00020273,2]
[381893283,1756392648837,-480.0,0.00020273,2]
[381893284,1756392648846,-480.0,0.00020273,2]
[381893285,1756392648856,-480.0,0.00020273,2]
[381893286,1756392648866,-480.0,0.00020273,2]
[381893287,1756392648877,-480.0,0.00020273,2]
[381893288,1756392648887,-611.87,0.00020273,2]
[381893289,1756392648896,-480.0,0.00020273,2]
[381893290,1756392648906,-553.16,0.00020273,2]
[381893291,1756392648915,-480.0,0.00020273,2]
[381893292,1756392648925,-480.0,0.00020273,2]
[381893293,1756392648935,-480.0,0.00020273,2]
[381893294,1756392648944,-480.0,0.00020273,2]
[381893295,1756392648954,-480.0,0.00020273,2]
[381893296,1756392648964,-480.0,0.00020273,2]
[381893297,1756392648973,-716.59,0.00020273,2]
[381893298,1756392648984,-971.05,0.00020273,2]
[381893299,1756392648993,-480.0,0.00020273,2]
[381893300,1756392649003,-480.0,0.00020273,2]
[381893301,1756392649013,-480.0,0.00020273,2]
[381893302,1756392649022,-779.59,0.00020273,2]
[381893303,1756392649032,-480.0,0.00020273,2]
[381893304,1756392649041,-480.0,0.00020273,2]
[381893305,1756392649051,-1203.85217142,0.00020273,2]
[381893306,1756392649341,-178.78782858,0.00020273,2]
[381893307,1756392649351,-1643.96,0.00020273,2]
[381893308,1756392649361,-480.0,0.00020273,2]
[381893309,1756392649371,-480.0,0.00020273,2]
[381893310,1756392649381,-998.4,0.00020273,2]
[381893311,1756392649393,-1436.79,0.00020273,2]
[381893312,1756392649404,-480.0,0.00020273,2]
[381893313,1756392649415,-480.0,0.00020273,2]
[381893314,1756392649424,-1140.12,0.00020273,2]
[381893315,1756392649435,-480.0,0.00020273,2]
[381893316,1756392649445,-480.0,0.00020273,2]
[381893317,1756392649455,-480.0,0.00020273,2]
[381893318,1756392649465,-512.27,0.00020273,2]
[381893319,1756392649475,-480.0,0.00020273,2]
[381893320,1756392649485,-480.0,0.00020273,2]
[381893321,1756392649495,-480.0,0.00020273,2]
[381893322,1756392649505,-480.0,0.00020273,2]
[381893323,1756392649515,-480.0,0.00020273,2]
[381893324,1756392649525,-871.64,0.00020273,2]
[381893325,1756392649535,-480.0,0.00020273,2]
[381893326,1756392649544,-480.0,0.00020273,2]
[381893327,1756392649554,-480.0,0.00020273,2]
[381893328,1756392649563,-480.0,0.00020273,2]
[381893329,1756392649573,-480.0,0.00020273,2]
[381893330,1756392649583,-552.44,0.00020273,2]
[381893331,1756392649592,-488.77,0.00020273,2]
[381893332,1756392649601,-480.0,0.00020273,2]
[381893333,1756392649611,-545.93,0.00020273,2]
[381893334,1756392649621,-696.53,0.00020273,2]
[381893335,1756392649632,-1849.12,0.00020273,2]
[381893336,1756392649641,-480.0,0.00020273,2]
[381893337,1756392649650,-480.0,0.00020273,2]
[381893338,1756392649661,-480.0,0.00020273,2]
[381893339,1756392649670,-480.0,0.00020273,2]
[381893340,1756392649680,-480.0,0.00020273,2]
[381893341,1756392649689,-959.54,0.00020273,2]
[381893342,1756392649699,-480.0,0.00020273,2]
[381893343,1756392649708,-480.0,0.00020273,2]
[381893344,1756392649719,-500.0,0.00020273,2]
[381893345,1756392649728,-186.80210997,0.00020275,2]
[381893346,1756392649738,-269.04316342,0.00020287,2]
[381893347,1756392649747,-500.0,0.00020321,2]
[381893348,1756392649757,-1000.0,0.00020321,2]
[381893349,1756392649766,-1000.0,0.00020321,2]
[381893350,1756392649775,-500.0,0.00020321,2]
[381893351,1756392649786,-1000.0,0.00020321,2]
[381893352,1756392649795,-1000.0,0.00020321,2]
[381893353,1756392649805,-1000.0,0.00020321,2]
[381893354,1756392649815,-1014.45769331,0.00020321,2]
[381893355,1756392649825,-1000.0,0.00020321,2]
[381893356,1756392649834,-1000.0,0.00020321,2]
[381893357,1756392649844,-667.98518684,0.00020321,2]
[381893358,1756392649854,-1008.6012517,0.00020321,2]
[381893359,1756392649863,-1000.0,0.00020321,2]
[381893360,1756392649873,-1000.0,0.00020321,2]
[381893361,1756392649883,-160.0,0.00020432,2]
[381893362,1756392649892,-875.12274309,0.00020462,2]
[381893363,1756392649902,-1000.0,0.00020521,2]
[381893364,1756392649911,-1000.0,0.00020521,2]
[381893365,1756392649921,-1000.0,0.00020521,2]
[381893366,1756392649930,-1000.0,0.00020521,2]
[381893367,1756392649940,-1000.0,0.00020521,2]
[381893368,1756392649949,-1000.0,0.00020521,2]
[381893369,1756392649958,-500.0,0.00020521,2]
[381893370,1756392649968,-1000.0,0.00020521,2]
[381893371,1756392649978,-407.6158901,0.00020521,2]
[381893372,1756392649995,-592.3841099,0.00020521,2]
[381893373,1756392650004,-221.54234939,0.00020521,2]
[381893374,1756392650014,-327.34554071,0.00020521,2]
[381893375,1756392650707,-480.0,0.00019178,2]
[381893376,1756392650716,-485.28,0.00019178,2]
[381893377,1756392650726,-480.0,0.00019178,2]
[381893378,1756392650736,-480.0,0.00019178,2]
[381893379,1756392650746,-480.0,0.00019452,2]
[381893380,1756392650756,-480.0,0.00019452,2]
[381893381,1756392650766,-480.0,0.00019452,2]
[381893382,1756392650775,-4580.43954054,0.00019626,2]
[381893383,1756392650785,-326.91131665,0.00019726,2]
[381893384,1756392650802,-153.08868335,0.00019726,2]
[381893385,1756392650811,-480.0,0.00019726,2]
[381893386,1756392650821,-480.0,0.00019726,2]
[381893387,1756392650831,-1077.17028489,0.000199,2]
[381893388,1756392650841,-480.0,0.0002,2]
[381893389,1756392650851,-480.0,0.0002,2]
[381893390,1756392650861,-260.026,0.00020139,2]
[381893391,1756392650871,-480.0,0.00020273,2]
[381893392,1756392650881,-672.65445929,0.00020521,2]
[381893393,1756392650890,-464.7111914,0.00020521,2]
[381893394,1756392650900,-848.96036793,0.00020521,2]
[381893395,1756392650909,-257.66562104,0.00020521,2]
[381893396,1756392650918,-420.0,0.00020531,2]
[381893397,1756392650928,-168.0,0.00020538,2]
[381893398,1756392650937,-480.0,0.00020547,2]
[381893399,1756392650947,-327.40520011,0.00020547,2]
[381893400,1756392650980,-228.57,0.00020273,2]
[381893401,1756392650989,-152.59479989,0.00020547,2]
[381893402,1756392650998,-385.46493042,0.00020547,2]
[381893403,1756392651008,-689.08,0.00020547,2]
[381893404,1756392651017,-480.0,0.00020547,2]
[381893405,1756392651027,-480.0,0.00020547,2]
[381893406,1756392651036,-480.0,0.00020547,2]
[381893407,1756392651045,-480.0,0.00020547,2]
[381893408,1756392651055,-480.0,0.00020547,2]
[381893409,1756392651064,-480.0,0.00020547,2]
[381893410,1756392651073,-480.0,0.00020547,2]
[381893411,1756392651083,-480.0,0.00020547,2]
[381893412,1756392651092,-480.0,0.00020547,2]
[381893413,1756392651101,-480.0,0.00020547,2]
[381893414,1756392651110,-436.63235055,0.00020547,2]
[381893415,1756392690845,5613.99341821,0.000167,2]
[381893416,1756392690867,4386.00658179,0.000167,2]
[381893417,1756392703507,3890.0,0.000167,2]
[381893418,1756392789794,276.490708,0.00013699,2]
[381893420,1756392943208,920.60879684,0.0002739,120]
[381893422,1756393145285,1120.0731278,0.0002739,120]
[381893423,1756393264797,463.4720444,0.00029984,120]
[381893425,1756393655562,-205.30549606,0.00017682,6]
[381893426,1756393660004,-303.54820357,0.00017682,6]
[381893428,1756393715103,-177.76424902,0.00017504,2]
[381893429,1756393753267,-125.58334339,0.00017504,2]
[381893430,1756393753293,-44.39926022,0.00017504,2]
[381893431,1756393756116,-125.5616757,0.00017504,2]
[381893432,1756393756146,-72.5429549,0.00017504,2]
[381893433,1756393760313,-167.48170131,0.00017504,2]
[381893434,1756393762568,-225.26093274,0.00017504,2]
[381893435,1756393762592,-11.84210256,0.00017505,6]
[381893436,1756393765826,-221.56378016,0.00017505,6]
[381893437,1756393767418,-197.76142539,0.00017505,6]
[381893438,1756393769048,-294.53927854,0.00017505,6]
[381893439,1756393773215,-191.38124444,0.00017505,6]
[381893440,1756393774787,-229.8203481,0.00017505,6]
[381893441,1756393776511,-309.55653536,0.00017505,6]
[381893442,1756393779262,-151.34458855,0.00017505,6]
[381893443,1756393782716,-193.76885521,0.00017505,6]
[381893444,1756393784959,-179.249725,0.00017505,6]
[381893445,1756393786697,-279.54054092,0.00017505,6]
[381893446,1756393789660,-207.8141755,0.00017505,6]
[381893447,1756393791951,-372.9583361,0.00017505,6]
[381893448,1756393793729,-151.37659072,0.00017505,6]
[381893449,1756393797700,-466.75946888,0.00017505,6]
[381893450,1756393800132,-160.59501291,0.00017505,6]
[381893451,1756393802839,-703.15453156,0.00017505,6]
[381893452,1756393805746,-190.7112023,0.00017505,6]
[381893453,1756393808507,-276.26400764,0.00017505,6]
[381893454,1756393810635,-209.99825016,0.00017505,6]
[381893455,1756393810657,-47.02120818,0.00017581,2]
[381893456,1756393815370,-104.32338037,0.00017581,2]
[381893940,1756393838778,-4491.14630037,0.00017682,6]
[381893941,1756393838788,-1945.31176808,0.00017682,2]
[381893942,1756393838797,-177.76424902,0.00017761,2]
[381893943,1756393838806,-208.64101696,0.00017861,2]
[381893944,1756393838817,-177.76424899,0.00018197,2]
[381893945,1756393838826,-177.76424899,0.00018632,2]
[381893946,1756393838836,-300.0,0.00018699,2]
[381893947,1756393838845,-10000.01,0.000187,2]
[381893948,1756393838855,-193.91394028,0.00019068,2]
[381893949,1756393838864,-177.76424899,0.00019068,2]
[381893950,1756393838873,-24024.25865054,0.00019078,2]
[381893951,1756393838882,-2144.96,0.00019168,3]
[381893952,1756393838892,-1072.48,0.00019168,3]
[381893953,1756393838902,-536.24,0.00019168,3]
[381893954,1756393838911,-268.12,0.00019168,3]
[381893955,1756393838920,-804.36,0.00019168,3]
[381893956,1756393838930,-500.0,0.00019173,2]
[381893957,1756393838940,-500.0,0.00019173,2]
[381893958,1756393838949,-500.0,0.00019173,2]
[381893959,1756393838958,-480.0,0.00019178,2]
[381893960,1756393838967,-480.0,0.00019178,2]
[381893961,1756393838977,-480.0,0.00019178,2]
[381893962,1756393838986,-481.93370763,0.00019178,2]
[381893963,1756393838995,-176.39863873,0.00019178,2]
[381893964,1756393839004,-544.15760652,0.00019178,2]
[381893965,1756393839014,-480.0,0.00019178,2]
[381893966,1756393839023,-480.0,0.00019178,2]
[381893967,1756393839032,-480.0,0.00019178,2]
[381893968,1756393839042,-480.0,0.00019178,2]
[381893969,1756393839051,-480.0,0.00019178,2]
[381893970,1756393839060,-480.0,0.00019178,2]
[381893971,1756393839069,-480.0,0.00019178,2]
[381893972,1756393839078,-480.0,0.00019178,2]
[381893973,1756393839088,-480.0,0.00019178,2]
[381893974,1756393839097,-480.0,0.00019178,2]
[381893975,1756393839106,-480.0,0.00019178,2]
[381893976,1756393839116,-480.0,0.00019178,2]
[381893977,1756393839126,-480.0,0.00019178,2]
[381893978,1756393839135,-480.0,0.00019178,2]
[381893979,1756393839145,-480.0,0.00019178,2]
[381893980,1756393839154,-480.0,0.00019178,2]
[381893981,1756393839163,-480.0,0.00019178,2]
[381893982,1756393839172,-480.0,0.00019178,2]
[381893983,1756393839182,-480.0,0.00019178,2]
[381893984,1756393839193,-550.32516196,0.00019178,2]
[381893985,1756393839202,-480.0,0.00019178,2]
[381893986,1756393839211,-480.0,0.00019178,2]
[381893987,1756393839220,-480.0,0.00019178,2]
[381893988,1756393839230,-480.0,0.00019178,2]
[381893989,1756393839239,-480.0,0.00019178,2]
[381893990,1756393839248,-480.0,0.00019178,2]
[381893991,1756393839258,-480.0,0.00019178,2]
[381893992,1756393839267,-480.0,0.00019178,2]
[381893993,1756393839276,-480.0,0.00019178,2]
[381893994,1756393839285,-480.0,0.00019178,2]
[381893995,1756393839295,-480.0,0.00019178,2]
[381893996,1756393839304,-480.0,0.00019178,2]
[381893997,1756393839314,-480.0,0.00019178,2]
[381893998,1756393839322,-480.0,0.00019178,2]
[381893999,1756393839332,-480.0,0.00019178,2]
[381894000,1756393839341,-480.0,0.00019178,2]
[381894001,1756393839350,-480.0,0.00019178,2]
[381894002,1756393839360,-480.0,0.00019178,2]
[381894003,1756393839369,-482.47453271,0.00019178,2]
[381894004,1756393839378,-480.0,0.00019178,2]
[381894005,1756393839387,-480.0,0.00019178,2]
[381894006,1756393839396,-698.81,0.00019178,2]
[381894007,1756393839405,-480.0,0.00019178,2]
[381894008,1756393839414,-522.93399676,0.00019178,2]
[381894009,1756393839423,-480.0,0.00019178,2]
[381894010,1756393839432,-507.32,0.00019178,2]
[381894011,1756393839443,-480.0,0.00019178,2]
[381894012,1756393839452,-480.0,0.00019178,2]
[381894013,1756393839461,-480.0,0.00019178,2]
[381894014,1756393839470,-480.0,0.00019178,2]
[381894015,1756393839479,-480.0,0.00019178,2]
[381894016,1756393839488,-480.0,0.00019178,2]
[381894017,1756393839497,-480.0,0.00019178,2]
[381894018,1756393839506,-480.0,0.00019178,2]
[381894019,1756393839516,-480.0,0.00019178,2]
[381894020,1756393839525,-480.0,0.00019178,2]
[381894021,1756393839534,-480.0,0.00019178,2]
[381894022,1756393839543,-480.0,0.00019178,2]
[381894023,1756393839715,-480.0,0.00019178,2]
[381894024,1756393839724,-480.0,0.00019178,2]
[381894025,1756393839734,-480.0,0.00019178,2]
[381894026,1756393839748,-480.0,0.00019178,2]
[381894027,1756393839757,-480.0,0.00019178,2]
[381894028,1756393839766,-480.0,0.00019178,2]
[381894029,1756393839776,-480.0,0.00019178,2]
[381894030,1756393839786,-480.0,0.00019178,2]
[381894031,1756393839795,-480.0,0.00019178,2]
[381894032,1756393839805,-480.0,0.00019178,2]
[381894033,1756393839814,-480.0,0.00019178,2]
[381894034,1756393839824,-480.0,0.00019178,2]
[381894035,1756393839834,-480.0,0.00019178,2]
[381894036,1756393839843,-480.0,0.00019178,2]
[381894037,1756393839852,-480.0,0.00019178,2]
[381894038,1756393839861,-480.0,0.00019178,2]
[381894039,1756393839870,-480.0,0.00019178,2]
[381894040,1756393839880,-480.0,0.00019178,2]
[381894041,1756393839889,-480.0,0.00019178,2]
[381894042,1756393839899,-480.0,0.00019178,2]
[381894043,1756393839909,-480.0,0.00019178,2]
[381894044,1756393839918,-480.0,0.00019178,2]
[381894045,1756393839927,-480.0,0.00019178,2]
[381894046,1756393839938,-512.52755091,0.00019178,2]
[381894047,1756393839947,-480.0,0.00019178,2]
[381894048,1756393839956,-480.8,0.00019178,2]
[381894049,1756393839966,-480.0,0.00019178,2]
[381894050,1756393839975,-480.0,0.00019178,2]
[381894051,1756393839984,-480.0,0.00019178,2]
[381894052,1756393839994,-480.0,0.00019178,2]
[381894053,1756393840003,-480.0,0.00019178,2]
[381894054,1756393840012,-480.0,0.00019178,2]
[381894055,1756393840021,-480.0,0.00019178,2]
[381894056,1756393840030,-480.0,0.00019178,2]
[381894057,1756393840040,-480.0,0.00019178,2]
[381894058,1756393840049,-480.0,0.00019178,2]
[381894059,1756393840058,-480.0,0.00019178,2]
[381894060,1756393840067,-480.0,0.00019178,2]